{"text_format":"1","workbook":"xlsx","n_sheets":3,"sheets":["Inicio","BalanceGeneral","EstadoResultados"],"not_rendered":{"charts":0,"images":11,"macros":1,"external_links":0,"defined_names":22,"comments":1,"pivot_tables":0},"unopened":[],"bounds":{"document_bytes":16777216,"sheet_cells":100000,"rows_first":2000,"rows_last":500,"rows_between":2000,"halvings":0,"cell_chars":16384,"cell_head_chars":4096},"cells_cut":0,"cells_raw":0,"read":"whole","date_system":"1900"}

{"sheet":"Inicio","index":0,"n_rows":20,"n_cols":3,"rows_kept":20,"cut":false,"hidden":false,"merged":[[19,2,20,14]]}
[]
[]
[]
[]
[]
[]
[]
[]
[]
[]
[]
[]
[]
[]
[]
[]
[]
[]
[]
[null,null,"•     Bancolombia S.A. pone a disposición la presente herramienta, la cual tiene fines informativos y no comporta oferta o promesa de contratar.\n•     El resultado no comprende una certificación o recomendación comercial, contable, tributaria o legal.\n•     La herramienta es indicativa y está destinada a proporcionar información y estimaciones de carácter general basadas en la información proporcionada por usted. \n•     La Herramienta es propiedad de Bancolombia S.A. no se permite la reproducción, venta, publicación, modificación, difusión o explotación comercial de la Herramienta o la información proporcionada por la misma."]

{"sheet":"BalanceGeneral","index":1,"n_rows":91,"n_cols":9,"rows_kept":91,"cut":false,"hidden":true,"merged":[[60,5,61,5],[54,7,54,11],[55,7,55,11],[56,7,56,11],[57,7,57,11],[25,7,25,11],[4,5,10,8],[19,4,20,4],[19,5,20,5],[49,4,50,4],[49,5,50,5],[39,7,39,11],[40,7,40,11],[33,7,33,11],[34,7,34,11],[13,5,14,5],[85,8,86,11],[44,3,45,3],[44,4,45,4],[44,5,45,5],[32,7,32,11],[46,8,46,12],[48,8,50,10],[51,8,51,11],[60,3,61,3],[65,4,66,4],[65,5,66,5],[53,7,53,11],[60,8,61,11],[58,7,58,11],[59,7,59,11],[60,4,61,4],[90,3,96,10],[18,8,20,10],[13,3,14,4],[44,8,45,11],[22,7,22,11],[65,3,66,3],[78,4,80,4],[78,5,80,5],[83,3,83,9],[72,7,72,11],[78,0,80,3],[64,7,64,11],[71,7,71,11],[73,7,73,11],[74,7,74,11],[65,8,66,11],[75,7,75,11],[69,8,70,11],[70,0,70,3],[49,0,50,3],[19,0,20,3],[21,8,21,11],[29,8,29,11],[30,8,30,12],[35,7,35,11],[41,7,41,11],[38,7,38,11],[26,7,26,11],[27,7,27,11],[28,7,28,11],[23,7,23,11],[24,7,24,11]]}
[]
[]
[]
[]
[]
[]
[]
[]
[]
[]
[]
[]
[]
[null,null,null,"Selecciona de la lista desplegable el año a contabilizar: ",null,2020]
[]
[]
[null,null,null,"Ingresa información en campos vacios "]
[]
[null,null,null,null,{"$f":"+F19-1","v":2019},{"$f":"+F14","v":2020},null,null,"Bienes, derechos y otros recursos que posee  una empresa."]
["TOTAL ACTIVO",null,null,null,{"$f":"SUM(E30,E45)","v":0},{"$f":"SUM(F30,F45)","v":0}]
[]
[null,null,null,null,null,null,null,null,"*Campo calculado "]
[null,null,null,"Caja General",{"$f":"SUM(E24:E25)","v":0},{"$f":"SUM(F24:F25)","v":0},null,"*Campo calculado "]
[null,null,null,"Banco",null,null,null,"*Dinero que se tiene depositado en instituciones financieras y que se encuentra a nombre del negocio."]
[null,null,null,"Efectivo",null,null,null,"*Dinero en efectivo que se tiene en la caja al cierre de año."]
[null,null,null,"Anticipos",null,null,null,"*Dinero pagado por adelantado a proveedores para compra de mercancía, pago de seguros, de impuestos, anticipos para compra de activos fijos, entre otros; que están o no relacionados con la actividad comercial y que fueron asumidos con recursos del negocio."]
[null,null,null,"Cuentas por Cobrar Clientes",null,null,null,"*Sumatoria de aquellas facturas generadas a los clientes y que se encuentran pendientes de su recaudo.  "]
[null,null,null,"Inventarios",null,null,null,"*Costo total de la mercancía que se tiene disponible para la venta a su valor de compra."]
[null,null,null,"Otros activos corrientes",null,null,null,"*Sumatoria de préstamos otorgados a empledos, a terceros, entre otros. Se hace referencia a aquellos recursos que salieron de la caja y de los que se espera un retorno en el corto plazo."]
[null,null,null,"ACTIVO CORRIENTE",{"$f":"SUM(E23:E29)","v":0},{"$f":"SUM(F23:F29)","v":0},null,null,"Bienes y recursos que permanecen en el negocio en un plazo menor a un año.        "]
[null,null,null,null,null,null,null,null,"*Campo calculado "]
[]
[null,null,null,"Propiedad, planta y equipo",null,null,null,"*Todos los bienes muebles e inmuebles que se encuentran a nombre del negocio tales como: edificios, lotes, casas, bodegas, vehículos, maquinaria, enseres, construcciones en curso, entre otros."]
[null,null,null,"Depreciación acumulada",null,null,null,"*Disminución periódica del valor del bien inmueble (equipos, maquinaria, vehiculos) bien sea por el desgaste o por el paso del tiempo. Para registrar dicho valor, se debe tener en cuenta el tipo de activo y el tiempo a depreciar según lo estipulado en la norma contable."]
[null,null,null,"Otros activos fijos",null,null,null,"*Aquellos bienes tangibles e intangibles que no se clasificaron en la cuenta de propiedad planta y equipo, tales como: licencias, cultivos, software, entre otros."]
[null,null,null,"ACTIVO FIJO",{"$f":"E33-E34+E35","v":0},{"$f":"F33-F34+F35","v":0},null,"*Campo calculado "]
[]
[]
[null,null,null,"Inversiones a largo plazo",null,null,null,"*Aquellas que se encuentran a nombre del negocio, bien sea en entidades financieras, participación accionaria en otras empresas, entre otras; de las cuales se espera un retorno en un tiempo superior a 12 meses."]
[null,null,null,"Cuentas por cobrar a socios",null,null,null,"*Saldo que se tiene pendiente por recaudar por préstamos realizados a los socios de la compañía con dinero del negocio."]
[null,null,null,"Otros",null,null,null,"*Aquellas partidas cuyo retorno esperado es en un plazo superior a 12 meses y que no se clasificó en las cuentas anteriores."]
[null,null,null,"OTROS ACTIVOS NO CORRIENTES",{"$f":"SUM(E39:E41)","v":0},{"$f":"SUM(F39:F41)","v":0},null,"*Campo calculado "]
[]
[]
[null,null,null,"ACTIVO NO CORRIENTE",{"$f":"SUM(E36,E42)","v":0},{"$f":"SUM(F36,F42)","v":0},null,null,"Bienes e inversiones que se mantendrán por periodos superiores a un año (LARGO PLAZO)"]
[]
[null,null,null,null,null,null,null,null,"*Campo calculado "]
[]
[null,null,null,null,{"$f":"E19","v":2019},{"$f":"F19","v":2020},null,null,"Deudas y Obligaciones del negocio"]
["TOTAL PASIVOS ",null,null,null,{"$f":"SUM(E61,E66)","v":0},{"$f":"SUM(F61,F66)","v":0}]
[]
[null,null,null,null,null,null,null,null,"*Campo calculado "]
[]
[null,null,null,"Obligaciones financieras (menor a 12 meses)",null,null,null,"*Deudas que se tengan a la fecha con bancos cuyo vencimiento sea menor a 12 meses."]
[null,null,null,"Obligaciones con particulares",null,null,null,"*Deudas que se tengan a la fecha de análisis con negocios o personas diferentes al banco o los socios."]
[null,null,null,"Proveedores",null,null,null,"*Saldo del dinero que se debe a la fecha a proveedores por los bienes o servicios ya prestados."]
[null,null,null,"Obligaciones Laborales",null,null,null,"*Saldo de dinero que se debe a los empleados por el tiempo trabajado y aportes parafiscales."]
[null,null,null,"Impuestos por pagar",null,null,null,"*Saldo del dinero que se debe pagar en impuestos a la fecha."]
[null,null,null,"Cuentas por pagar a Socios",null,null,null,"*Es el saldo que se tiene pendiente por recaudar por préstamos realizados a los socios de la compañía con dinero del negocio."]
[null,null,null,"Otras pasivos",null,null,null,"*Aquellas partidas cuyo retorno esperado es en un plazo superior a 12 meses y que no se clasificó en las cuentas anteriores."]
[null,null,null,"PASIVO CORRIENTE",{"$f":"SUM(E54:E60)","v":0},{"$f":"SUM(F54:F60)","v":0},null,null,"Deudas u Obligaciones con vencimiento inferior a un año (CORTO PLAZO)"]
[]
[]
[]
[null,null,null,"Obligaciones financieras (mayor a 12 meses)",null,null,null,"*Deudas que se tengan a la fecha con bancos cuyo vencimiento sea mayor a 12 meses."]
[null,null,null,"PASIVO NO CORRIENTE",{"$f":"SUM(E65:E65)","v":0},{"$f":"SUM(F65:F65)","v":0},null,null,"Deudas u Obligaciones superiores a un año (LARGO PLAZO)"]
[]
[]
[]
[null,null,null,null,{"$f":"E19","v":2019},{"$f":"F19","v":2020},null,null,"Aportaciones de los propietarios modificada por los resultados de operación de la empresa"]
["PATRIMONIO",null,null,null,{"$f":"SUM(E72:E76)","v":0},{"$f":"SUM(F72:F76)","v":0}]
[null,null,null,"Capital Social",null,null,null,"*Dinero con el que se constituyó el negocio y que se encuentra registrado en Cámara de Comercio como capital pagado."]
[null,null,null,"Reservas"]
[null,null,null,"Utilidades acumuladas",null,null,null,"*Las ganancias del negocio que aún no se han repartido entre los socios."]
[null,null,null,"Utilidades del periodo",null,null,null,"*Ganancia o pérdida del negocio en el periodo analizado."]
[null,null,null,"Otras cuentas patrimoniales",null,null,null,"*Cuentas que hacen parte del patrimonio y que no se clasificaron en las partidas anteriores"]
[null,null,null,"TOTAL UTILIDADES",{"$f":"E74+E75","v":0},{"$f":"F74+F75","v":0}]
[]
["TOTAL PASIVO Y PATRIMONIO",null,null,null,{"$f":"+E71+E50","v":0},{"$f":"+F71+F50","v":0}]
[]
[]
[]
[]
[null,null,null,"Comprobando si se cumple la ecuación patrimonial, tenemos:"]
[]
[null,null,null,"TOTAL ACTIVO",null,"TOTAL PASIVO Y PATRIMONIO",null,null,"El activo total debe ser igual al total de la suma entre el pasivo y el patrimonio. De esta manera el balance cumplirá con la ecuación contable, haciendo evidente el equilibrio entre los recursos que posee el negocio y su fuente de apalancamiento."]
[null,null,{"$f":"E19","v":2019},{"$f":"E20","v":0},{"$f":"IF(D87=F87,\"Cumple Ecuaciòn Patrimonial, sigue avanzando\",\"ERROR, No cumple Ecuaciòn Patrimonial, tus cuentas estan desequilibradas\")","v":"Cumple Ecuaciòn Patrimonial, sigue avanzando"},{"$f":"E79","v":0}]
[null,null,{"$f":"F19","v":2020},{"$f":"F20","v":0},{"$f":"IF(D88=F88,\"Cumple Ecuaciòn Patrimonial, sigue avanzando\",\"ERROR, No cumple Ecuaciòn Patrimonial, tus cuentas estan desequilibradas\")","v":"Cumple Ecuaciòn Patrimonial, sigue avanzando"},{"$f":"F79","v":0}]
[]
[]
[null,null,null,"•     Bancolombia S.A. pone a disposición la presente herramienta, la cual tiene fines informativos y no comporta oferta o promesa de contratar.\n•     El resultado no comprende una certificación o recomendación comercial, contable, tributaria o legal.\n•     La herramienta es indicativa y está destinada a proporcionar información y estimaciones de carácter general basadas en la información proporcionada por usted. \n•     La Herramienta es propiedad de Bancolombia S.A. no se permite la reproducción, venta, publicación, modificación, difusión o explotación comercial de la Herramienta o la información proporcionada por la misma."]

{"sheet":"EstadoResultados","index":2,"n_rows":64,"n_cols":11,"rows_kept":64,"cut":false,"hidden":true,"merged":[[4,5,10,6],[52,7,52,8],[45,7,45,8],[45,5,45,6],[40,7,40,8],[52,5,52,6],[47,5,47,6],[48,5,48,6],[41,7,41,8],[42,7,42,8],[43,7,43,8],[44,7,44,8],[41,5,41,6],[42,5,42,6],[43,5,43,6],[44,5,44,6],[13,1,15,5],[19,3,21,5],[19,7,21,10],[23,3,29,5],[23,7,24,10],[18,3,18,5],[22,7,22,8],[31,3,31,5],[34,3,35,10],[38,1,38,10],[27,7,29,10],[40,5,40,6],[40,2,40,4],[33,3,33,5],[30,7,30,10],[31,7,31,10],[41,2,41,4],[42,2,42,4],[43,2,43,4],[44,2,44,4],[45,2,45,4],[51,2,51,4],[52,2,52,4],[53,5,53,6],[54,5,54,6],[55,5,55,6],[51,5,51,6],[53,2,53,4],[54,2,54,4],[55,2,55,4],[42,10,44,10],[47,2,47,4],[48,2,48,4],[49,2,49,4],[50,2,50,4],[46,2,46,4],[49,7,49,8],[49,10,51,10],[50,7,50,8],[51,7,51,8],[49,5,49,6],[50,5,50,6],[46,7,46,8],[47,7,47,8],[48,7,48,8],[46,5,46,6],[56,2,56,4],[63,1,64,10],[56,5,56,6],[56,7,56,8],[56,10,57,10],[53,7,53,8],[53,10,54,10],[54,7,54,8],[55,7,55,8],[46,10,47,10]]}
[]
[]
[]
[]
[]
[]
[]
[]
[]
[]
[]
[]
[]
[null,"Para lograr mayor claridad sobre los ingresos y gastos que hacen parte de cada uno de los conceptos de la estructura del estado de resultados, te compartimos algunos ejemplos de referencia:"]
[]
[]
[]
[]
[null,null,null,"Ingresos por actividad ordinaria",null,null,null,"Gastos de Administración"]
[null,null,null,"Aquellos percibidos por el desarrollo de la actividad principal del negocio, por ejemplo: ventas de productos o prestación de servicios.",null,null,null,"Relacionados con el funcionamiento general del negocio, por ejemplo: materiales de oficina, pago de servicios públicos, alquiler de locales, gastos de correspondencia, de viajes, entre otros."]
[]
[]
[null,null,null,"Costos de la mercancía vendida",null,null,null,"Gastos de Ventas"]
[null,null,null,"¿Cuanto le costó al negocio la realización del producto o servicio? \nPor ejemplo:\n\nCosto para negocios comerciales: Inventario inicial (productos no vendidos al final del ejercicio anterior) + Compras (mercancias que se necesitan para comercializar) - Inventario final (productos no vendidos durante el ejercicio presente)\n\nCosto para negocios industriales: Inventario inicial + Costo de producción (valor de factores necesarios para obtener un producto terminado) - Inventario final",null,null,null,"Remuneraciones y Comisiones pagadas al personal de ventas, propaganda, promoción, etc"]
[]
[]
[null,null,null,null,null,null,null," Gasto por intereses"]
[null,null,null,null,null,null,null,"Dentro de estos gastos se encuentran los intereses de obligaciones financieras, tanto con bancos como particulares."]
[]
[]
[null,null,null,"Otros gastos no operacionales",null,null,null,"Gastos por Impuestos sobre las Ganancias"]
[null,null,null,"Dentro de estos gastos se encuentran comisiones, primas de seguros, gastos bancarios diferentes a intereses, 4x1000 y otros.",null,null,null,"Pago porcentual de la utilidad generada antes de impuestos."]
[]
[null,null,null,"Otros ingresos no operacionales"]
[null,null,null,"Hace referencia a los intereses y rendimientos recibidos por concepto de préstamos e inversiones realizadas, recuperación de costos y gastos de ejercicios anteriores, venta de un activo, entre otros."]
[]
[]
[]
[null,"Ahora que ya conoces los diferentes conceptos, puedes empezar a registrar la información de tu negocio en la siguiente estructura de Estado de Resultados:"]
[]
[null,null,"Estado de Resultados ",null,null,{"$f":"+BalanceGeneral!E19","v":2019},null,{"$f":"BalanceGeneral!$F$19","v":2020}]
[null,null,"Ingresos por actividad ordinaria"]
[null,null,"Costos de la mercancia vendida",null,null,null,null,null,null,null,"Ganancia obtenida por la venta de un producto o servicio descontando solamente los costos asociados a su producción o prestación"]
[null,null,"UTILIDAD BRUTA",null,null,{"$f":"(F42-F43)","v":0},null,{"$f":"(H42-H43)","v":0}]
[null,null,"Gastos de Administración"]
[null,null,"Gastos de Ventas"]
[null,null,"GASTOS DE OPERACIÓN",null,null,{"$f":"SUM(F45,F46)","v":0},null,{"$f":"SUM(H45,H46)","v":0},null,null,"Utilidad depurada sin tener en cuenta intereses, impuestos, depreciaciones y amortizaciones. Permite una idea clara del rendimiento operativo del negocio."]
[null,null,"UTILIDAD EBITDA",null,null,{"$f":"(F44-F47)","v":0},null,{"$f":"(H44-H47)","v":0}]
[null,null,"Amortizaciones"]
[null,null,"Depreciaciones",null,null,null,null,null,null,null,"Ganancia obtenida de sus principales operaciones comerciales, sin intereses ni impuestos."]
[null,null,"UTILIDAD OPERACIONAL",null,null,{"$f":"F48-F49-F50","v":0},null,{"$f":"H48-H49-H50","v":0}]
[null,null,"Otros ingresos no operacionales"]
[null,null,"Otros gastos no operacionales"]
[null,null,"Gastos por Intereses",null,null,null,null,null,null,null,"Utilidad depurada de todo concepto operativo y financiero."]
[null,null,"UTILIDAD ANTES DE IMPUESTOS",null,null,{"$f":"F51+F52-F53-F54","v":0},null,{"$f":"H51+H52-H53-H54","v":0}]
[null,null,"Gasto por impuestos sobre las ganancias"]
[null,null,"UTILIDAD NETA DEL PERIODO",null,null,{"$f":"F55-F56","v":0},null,{"$f":"H55-H56","v":0},null,null,"Ganancia obtenida en un periodo determinado luego de descontar todos los costos y gastos incluyendo los impuestos"]
[]
[]
[]
[]
[]
[]
[null,"•     Bancolombia S.A. pone a disposición la presente herramienta, la cual tiene fines informativos y no comporta oferta o promesa de contratar.\n•     El resultado no comprende una certificación o recomendación comercial, contable, tributaria o legal.\n•     La herramienta es indicativa y está destinada a proporcionar información y estimaciones de carácter general basadas en la información proporcionada por usted. \n•     La Herramienta es propiedad de Bancolombia S.A. no se permite la reproducción, venta, publicación, modificación, difusión o explotación comercial de la Herramienta o la información proporcionada por la misma."]